fUST/lending_fUST_20240704
["ID","MTS","AMOUNT","RATE_DAILY","PERIOD"]
[331087326,1720073440874,-500.0,0.00014495,2]
[331087327,1720073440883,-500.0,0.00014495,2]
[331087328,1720073440892,-500.0,0.00014495,2]
[331087329,1720073440902,-500.0,0.00014495,2]
[331087330,1720073440911,-608.89452743,0.00014495,2]
[331087331,1720073440920,-1326.39,0.00014496,2]
[331087332,1720073440931,-1508.69,0.00014496,2]
[331087333,1720073440943,-773.3,0.00014496,2]
[331087334,1720073440952,-568.17,0.00014496,2]
[331087335,1720073440962,-500.0,0.00014496,2]
[331087336,1720073440971,-2750.98,0.00014496,2]
[331087337,1720073440980,-500.0,0.00014496,2]
[331087338,1720073440988,-899.18,0.00014496,2]
[331087339,1720073440997,-607.16,0.00014496,2]
[331087340,1720073441007,-3012.99,0.00014496,2]
[331087341,1720073441018,-691.64,0.00014497,2]
[331087342,1720073441028,-500.0,0.00014497,2]
[331087343,1720073441040,-500.0,0.00014497,2]
[331087344,1720073441050,-500.0,0.00014497,2]
[331087345,1720073441060,-1051.33,0.00014497,2]
[331087346,1720073441069,-500.0,0.00014497,2]
[331087347,1720073441079,-500.0,0.00014497,2]
[331087348,1720073441088,-613.62,0.00014497,2]
[331087349,1720073441098,-889.27,0.00014497,2]
[331087350,1720073441107,-500.0,0.00014497,2]
[331087351,1720073441116,-500.0,0.00014497,2]
[331087352,1720073441125,-527.11,0.00014497,2]
[331087353,1720073441135,-500.0,0.00014497,2]
[331087354,1720073441144,-500.0,0.00014497,2]
[331087355,1720073441153,-500.0,0.00014497,2]
[331087356,1720073441162,-500.0,0.00014497,2]
[331087357,1720073441171,-500.0,0.00014497,2]
[331087358,1720073441180,-500.0,0.00014497,2]
[331087359,1720073441189,-500.0,0.00014497,2]
[331087360,1720073441198,-500.0,0.00014497,2]
[331087361,1720073441208,-500.0,0.00014497,2]
[331087362,1720073441217,-500.0,0.00014497,2]
[331087363,1720073441326,-500.0,0.00014497,2]
[331087364,1720073441336,-585.76,0.00014497,2]
[331087365,1720073441344,-500.0,0.00014497,2]
[331087366,1720073441353,-500.0,0.00014497,2]
[331087367,1720073441362,-500.0,0.00014497,2]
[331087368,1720073441372,-500.0,0.00014497,2]
[331087369,1720073441381,-500.0,0.00014497,2]
[331087370,1720073441391,-500.0,0.00014497,2]
[331087371,1720073441400,-500.0,0.00014497,2]
[331087372,1720073441409,-537.08697881,0.00014497,2]
[331087373,1720073441419,-500.0,0.00014497,2]
[331087374,1720073441427,-500.0,0.00014497,2]
[331087375,1720073441436,-500.0,0.00014497,2]
[331087376,1720073441445,-157.27842767,0.00014497,2]
[331087377,1720073441455,-557.36,0.00014497,2]
[331087378,1720073441464,-218.62280517,0.00014497,2]
[331087379,1720073441473,-500.0,0.00014497,2]
[331087380,1720073441482,-500.0,0.00014497,2]
[331087381,1720073441491,-500.0,0.00014497,2]
[331087382,1720073441500,-612.53,0.00014497,2]
[331087383,1720073441510,-211.09469019,0.00014497,2]
[331087384,1720073441519,-511.82036638,0.00014497,2]
[331087385,1720073441527,-500.0,0.00014497,2]
[331087386,1720073441537,-636.79901793,0.00014497,2]
[331087387,1720073441546,-775.38,0.00014497,2]
[331087388,1720073441554,-517.10676978,0.00014497,2]
[331087389,1720073441563,-500.0,0.00014497,2]
[331087390,1720073441572,-500.0,0.00014497,2]
[331087391,1720073441582,-500.0,0.00014497,2]
[331087392,1720073441591,-500.0,0.00014497,2]
[331087393,1720073441599,-500.0,0.00014497,2]
[331087394,1720073441608,-500.0,0.00014497,2]
[331087395,1720073441618,-500.0,0.00014497,2]
[331087396,1720073441627,-500.0,0.00014497,2]
[331087397,1720073441635,-500.0,0.00014497,2]
[331087398,1720073441644,-500.0,0.00014497,2]
[331087399,1720073441654,-500.0,0.00014497,2]
[331087400,1720073441664,-3011.08,0.00014497,2]
[331087401,1720073441673,-500.0,0.00014497,2]
[331087402,1720073441681,-500.0,0.00014497,2]
[331087403,1720073441691,-27205.7555156,0.00014498,2]
[331087404,1720073441700,-500.0,0.00014504,2]
[331087405,1720073441709,-6141.07,0.00014504,2]
[331087406,1720073441718,-500.0,0.00014504,2]
[331087407,1720073441727,-1556.87,0.00014504,2]
[331087408,1720073441736,-635.75,0.00014504,2]
[331087409,1720073441745,-500.0,0.00014504,2]
[331087410,1720073441755,-153.38,0.00014504,2]
[331087411,1720073441764,-500.0,0.00014506,2]
[331087412,1720073441773,-503.7523198,0.00014506,2]
[331087413,1720073441782,-500.0,0.00014506,2]
[331087414,1720073441791,-500.0,0.00014506,2]
[331087415,1720073441800,-611.79097499,0.00014506,2]
[331087416,1720073441809,-500.0,0.00014506,2]
[331087417,1720073441818,-507.47065552,0.00014506,2]
[331087418,1720073441828,-505.40430516,0.00014506,2]
[331087419,1720073441837,-500.0,0.00014506,2]
[331087420,1720073441846,-500.0,0.00014506,2]
[331087421,1720073441855,-500.0,0.00014506,2]
[331087422,1720073441864,-584.73,0.00014506,2]
[331087423,1720073441873,-500.0,0.00014506,2]
[331087424,1720073441882,-500.0,0.00014506,2]
[331087425,1720073441891,-500.0,0.00014506,2]
[331087426,1720073441900,-505.28,0.00014506,2]
[331087427,1720073441909,-500.0,0.00014506,2]
[331087428,1720073441919,-500.0,0.00014506,2]
[331087429,1720073441928,-500.0,0.00014506,2]
[331087430,1720073441942,-500.0,0.00014506,2]
[331087431,1720073441951,-500.0,0.00014506,2]
[331087432,1720073441960,-500.0,0.00014506,2]
[331087433,1720073441970,-500.0,0.00014506,2]
[331087434,1720073441980,-500.0,0.00014506,2]
[331087435,1720073441989,-500.0,0.00014506,2]
[331087436,1720073441998,-500.0,0.00014506,2]
[331087437,1720073442007,-500.0,0.00014506,2]
[331087438,1720073442019,-500.0,0.00014506,2]
[331087439,1720073442029,-513.61,0.00014506,2]
[331087440,1720073442038,-500.0,0.00014506,2]
[331087441,1720073442047,-534.62,0.00014506,2]
[331087442,1720073442056,-500.0,0.00014506,2]
[331087443,1720073442066,-500.0,0.00014506,2]
[331087444,1720073442076,-500.0,0.00014506,2]
[331087445,1720073442085,-500.0,0.00014506,2]
[331087446,1720073442095,-500.0,0.00014506,2]
[331087447,1720073442105,-500.0,0.00014506,2]
[331087448,1720073442115,-500.0,0.00014506,2]
[331087449,1720073442124,-500.0,0.00014506,2]
[331087450,1720073442133,-500.0,0.00014508,2]
[331087451,1720073442142,-516.27078318,0.00014508,2]
[331087452,1720073442151,-400.73215011,0.00014508,2]
[331087453,1720073442160,-7352.21,0.00014508,2]
[331087454,1720073442170,-4777.69,0.00014508,2]
[331087455,1720073442179,-500.0,0.00014508,2]
[331087456,1720073442188,-796.78,0.00014517,2]
[331087457,1720073442197,-531.62,0.00014517,2]
[331087458,1720073442207,-719.99,0.00014517,2]
[331087459,1720073442216,-4254.14,0.00014517,2]
[331087460,1720073442225,-2304.23,0.00014517,2]
[331087461,1720073442235,-184.77709125,0.00014577,2]
[331087462,1720073442245,-11783.09802404,0.0001467,2]
[331087463,1720073442254,-27205.7555156,0.0001476,2]
[331087464,1720073442264,-1308.31,0.00014769,2]
[331087465,1720073442272,-7989.8,0.00014769,2]
[331087466,1720073442282,-972.03,0.00014769,2]
[331087467,1720073442291,-1814.72,0.00014769,2]
[331087468,1720073442300,-500.0,0.00014769,2]
[331087469,1720073442310,-500.0,0.00014769,2]
[331087470,1720073442319,-500.0,0.00014769,2]
[331087471,1720073442332,-1326.39,0.0001477,2]
[331087472,1720073442342,-1508.69,0.0001477,2]
[331087473,1720073442351,-773.3,0.0001477,2]
[331087474,1720073442361,-568.17,0.0001477,2]
[331087475,1720073442370,-288.83,0.0001477,2]
[331087476,1720073442379,-27205.7555156,0.0001477,2]
[331087477,1720073442388,-2750.98,0.0001477,2]
[331087478,1720073442398,-500.0,0.0001477,2]
[331087479,1720073442407,-899.18,0.0001477,2]
[331087480,1720073442416,-607.16,0.0001477,2]
[331087481,1720073442428,-3012.99,0.0001477,2]
[331087482,1720073442441,-691.64,0.00014771,2]
[331087483,1720073442455,-500.0,0.00014771,2]
[331087484,1720073442468,-500.0,0.00014771,2]
[331087485,1720073442479,-500.0,0.00014771,2]
[331087486,1720073442489,-1051.33,0.00014771,2]
[331087487,1720073442502,-500.0,0.00014771,2]
[331087488,1720073442514,-428.44142637,0.00014771,2]
[331087489,1720073442526,-613.62,0.00014771,2]
[331087490,1720073442539,-889.27,0.00014771,2]
[331087491,1720073442552,-500.0,0.00014771,2]
[331087492,1720073442564,-500.0,0.00014771,2]
[331087493,1720073442579,-527.11,0.00014771,2]
[331087494,1720073442593,-500.0,0.00014771,2]
[331087495,1720073442606,-500.0,0.00014771,2]
[331087496,1720073442621,-500.0,0.00014771,2]
[331087497,1720073442633,-500.0,0.00014771,2]
[331087498,1720073442644,-500.0,0.00014771,2]
[331087499,1720073442656,-500.0,0.00014771,2]
[331087500,1720073442668,-500.0,0.00014771,2]
[331087501,1720073442680,-500.0,0.00014771,2]
[331087502,1720073442691,-500.0,0.00014771,2]
[331087503,1720073442703,-500.0,0.00014771,2]
[331087504,1720073442714,-585.76,0.00014771,2]
[331087505,1720073442724,-500.0,0.00014771,2]
[331087506,1720073442736,-500.0,0.00014771,2]
[331087507,1720073442747,-500.0,0.00014771,2]
[331087508,1720073442760,-500.0,0.00014771,2]
[331087509,1720073442771,-575.00162454,0.00014771,2]
[331087510,1720073442783,-506.92771056,0.00014771,2]
[331087511,1720073442795,-500.0,0.00014771,2]
[331087512,1720073442808,-500.0,0.00014771,2]
[331087513,1720073442821,-500.0,0.00014771,2]
[331087514,1720073442840,-500.0,0.00014771,2]
[331087515,1720073442852,-557.36,0.00014771,2]
[331087516,1720073442863,-500.0,0.00014771,2]
[331087517,1720073442873,-500.0,0.00014771,2]
[331087518,1720073442882,-612.53,0.00014771,2]
[331087519,1720073442892,-500.0,0.00014771,2]
[331087520,1720073442903,-775.38,0.00014771,2]
[331087521,1720073442915,-500.0,0.00014771,2]
[331087522,1720073442928,-500.0,0.00014771,2]
[331087523,1720073442944,-500.0,0.00014771,2]
[331087524,1720073442954,-500.0,0.00014771,2]
[331087525,1720073442965,-500.0,0.00014771,2]
[331087526,1720073442976,-500.0,0.00014771,2]
[331087527,1720073442987,-500.0,0.00014771,2]
[331087528,1720073443000,-500.0,0.00014771,2]
[331087529,1720073443013,-500.0,0.00014771,2]
[331087530,1720073443023,-500.0,0.00014771,2]
[331087531,1720073443034,-500.0,0.00014771,2]
[331087532,1720073443045,-3011.08,0.00014771,2]
[331087533,1720073443055,-500.0,0.00014771,2]
[331087534,1720073443066,-500.0,0.00014771,2]
[331087535,1720073443077,-500.0,0.00014778,2]
[331087536,1720073443087,-6141.07,0.00014778,2]
[331087537,1720073443098,-500.0,0.00014778,2]
[331087538,1720073443109,-1556.87,0.00014778,2]
[331087539,1720073443119,-635.75,0.00014778,2]
[331087540,1720073443130,-500.0,0.00014778,2]
[331087541,1720073443140,-500.0,0.0001478,2]
[331087542,1720073443151,-500.0,0.0001478,2]
[331087543,1720073443162,-482.77416286,0.0001478,2]
[331087544,1720073443172,-511.80910555,0.0001478,2]
[331087545,1720073443183,-584.73,0.0001478,2]
[331087546,1720073443194,-500.0,0.0001478,2]
[331087547,1720073443204,-500.0,0.0001478,2]
[331087548,1720073443215,-500.0,0.0001478,2]
[331087549,1720073443227,-500.0,0.0001478,2]
[331087550,1720073443239,-500.0,0.0001478,2]
[331087551,1720073443249,-500.0,0.0001478,2]
[331087552,1720073443260,-500.0,0.0001478,2]
[331087553,1720073443271,-500.0,0.0001478,2]
[331087554,1720073443282,-500.0,0.0001478,2]
[331087555,1720073443292,-500.0,0.0001478,2]
[331087556,1720073443303,-500.0,0.0001478,2]
[331087557,1720073443314,-500.0,0.0001478,2]
[331087558,1720073443325,-500.0,0.0001478,2]
[331087559,1720073443337,-500.0,0.0001478,2]
[331087560,1720073443348,-513.61,0.0001478,2]
[331087561,1720073443359,-500.0,0.0001478,2]
[331087562,1720073443369,-534.62,0.0001478,2]
[331087563,1720073443380,-500.0,0.0001478,2]
[331087564,1720073443391,-500.0,0.0001478,2]
[331087565,1720073443402,-500.0,0.0001478,2]
[331087566,1720073443413,-500.0,0.0001478,2]
[331087567,1720073443423,-500.0,0.0001478,2]
[331087568,1720073443434,-330.99394844,0.0001478,2]
[331087569,1720073443444,-500.0,0.0001478,2]
[331087570,1720073443456,-500.0,0.0001478,2]
[331087571,1720073443466,-7352.21,0.00014782,2]
[331087572,1720073443477,-4777.69,0.00014782,2]
[331087573,1720073443488,-500.0,0.00014782,2]
[331087574,1720073443499,-796.78,0.00014791,2]
[331087575,1720073443510,-531.62,0.00014791,2]
[331087576,1720073443520,-719.99,0.00014791,2]
[331087577,1720073443533,-4254.14,0.00014791,2]
[331087578,1720073443544,-2304.23,0.00014791,2]
[331087579,1720073443555,-27205.7555156,0.00014988,2]
[331087580,1720073443566,-9614.54817379,0.00014998,2]
[331087581,1720073443577,-6076.9012323,0.00014998,2]
[331087582,1720073443588,-1597.25650539,0.00014999,2]
[331087583,1720073443599,-3078.51196359,0.00014999,2]
[331087584,1720073443610,-3137.77932824,0.00014999,2]
[331087585,1720073443622,-4710.72024946,0.00014999,2]
[331087586,1720073443633,-1463.29635585,0.00014999,2]
[331087587,1720073443643,-3130.06017381,0.00014999,4]
[331087588,1720073443654,-1634.59229075,0.00014999,2]
[331087589,1720073443666,-2118.3618334,0.00014999,2]
[331087590,1720073443676,-789.77698638,0.00014999,2]
[331087591,1720073443688,-1500.0,0.00014999,2]
[331087592,1720073443698,-1104.60661146,0.00015,2]
[331087593,1720073443710,-948.84245203,0.00015,2]
[331087594,1720073443720,-2420.55776569,0.00015,2]
[331087595,1720073443732,-2843.34728943,0.00015,2]
[331087605,1720073443886,-808.0087546,0.00015,2]
[331087606,1720073443899,-1039.06688618,0.00015,2]
[331087607,1720073443908,-395.4705443,0.00015,2]
[331087608,1720073443918,-27205.7555156,0.00015034,2]
[331087609,1720073443927,-1308.31,0.00015043,2]
[331087610,1720073443939,-7989.8,0.00015043,2]
[331087611,1720073443948,-972.03,0.00015043,2]
[331087612,1720073443958,-1814.72,0.00015043,2]
[331087613,1720073443967,-500.0,0.00015043,2]
[331087614,1720073443976,-500.0,0.00015043,2]
[331087615,1720073443987,-500.0,0.00015043,2]
[331087616,1720073443996,-27205.7555156,0.00015044,2]
[331087617,1720073444005,-1326.39,0.00015044,2]
[331087618,1720073444017,-1508.69,0.00015044,2]
[331087619,1720073444027,-773.3,0.00015044,2]
[331087620,1720073444036,-568.17,0.00015044,2]
[331087621,1720073444046,-2750.98,0.00015044,2]
[331087622,1720073444055,-500.0,0.00015044,2]
[331087623,1720073444064,-899.18,0.00015044,2]
[331087624,1720073444073,-607.16,0.00015044,2]
[331087625,1720073444086,-3012.99,0.00015044,2]
[331087626,1720073444094,-691.64,0.00015045,2]
[331087627,1720073444103,-500.0,0.00015045,2]
[331087628,1720073444112,-500.0,0.00015045,2]
[331087629,1720073444121,-500.0,0.00015045,2]
[331087630,1720073444130,-1051.33,0.00015045,2]
[331087631,1720073444139,-500.0,0.00015045,2]
[331087632,1720073444148,-613.62,0.00015045,2]
[331087633,1720073444158,-889.27,0.00015045,2]
[331087634,1720073444167,-500.0,0.00015045,2]
[331087635,1720073444176,-500.0,0.00015045,2]
[331087636,1720073444186,-527.11,0.00015045,2]
[331087637,1720073444195,-500.0,0.00015045,2]
[331087638,1720073444204,-500.0,0.00015045,2]
[331087639,1720073444214,-500.0,0.00015045,2]
[331087640,1720073444223,-500.0,0.00015045,2]
[331087641,1720073444232,-500.0,0.00015045,2]
[331087642,1720073444245,-500.0,0.00015045,2]
[331087643,1720073444254,-500.0,0.00015045,2]
[331087644,1720073444263,-500.0,0.00015045,2]
[331087645,1720073444273,-585.76,0.00015045,2]
[331087646,1720073444282,-500.0,0.00015045,2]
[331087647,1720073444291,-500.0,0.00015045,2]
[331087648,1720073444300,-500.0,0.00015045,2]
[331087649,1720073444309,-500.0,0.00015045,2]
[331087650,1720073444319,-500.0,0.00015045,2]
[331087651,1720073444330,-500.0,0.00015045,2]
[331087652,1720073444339,-500.0,0.00015045,2]
[331087653,1720073444349,-557.36,0.00015045,2]
[331087654,1720073444358,-500.0,0.00015045,2]
[331087655,1720073444368,-500.0,0.00015045,2]
[331087656,1720073444377,-612.53,0.00015045,2]
[331087657,1720073444387,-500.0,0.00015045,2]
[331087658,1720073444396,-775.38,0.00015045,2]
[331087659,1720073444405,-500.0,0.00015045,2]
[331087660,1720073444414,-500.0,0.00015045,2]
[331087661,1720073444423,-500.0,0.00015045,2]
[331087662,1720073444433,-500.0,0.00015045,2]
[331087663,1720073444442,-500.0,0.00015045,2]
[331087664,1720073444451,-500.0,0.00015045,2]
[331087665,1720073444461,-500.0,0.00015045,2]
[331087666,1720073444470,-500.0,0.00015045,2]
[331087667,1720073444479,-500.0,0.00015045,2]
[331087668,1720073444488,-3011.08,0.00015045,2]
[331087670,1720073444497,-500.0,0.00015045,2]
[331087671,1720073444507,-500.0,0.00015045,2]
[331087673,1720073444516,-500.0,0.00015052,2]
[331087675,1720073444525,-6141.07,0.00015052,2]
[331087676,1720073444535,-500.0,0.00015052,2]
[331087678,1720073444544,-1556.87,0.00015052,2]
[331087680,1720073444553,-635.75,0.00015052,2]
[331087681,1720073444562,-500.0,0.00015052,2]
[331087683,1720073444571,-500.0,0.00015054,2]
[331087685,1720073444583,-328.16772296,0.00015054,2]
[331087687,1720073444591,-584.73,0.00015054,2]
[331087689,1720073444600,-500.0,0.00015054,2]
[331087691,1720073444609,-500.0,0.00015054,2]
[331087692,1720073444619,-500.0,0.00015054,2]
[331087694,1720073444628,-529.05453479,0.00015054,2]
[331087695,1720073444637,-500.0,0.00015054,2]
[331087696,1720073444647,-500.0,0.00015054,2]
[331087697,1720073444656,-500.0,0.00015054,2]
[331087698,1720073444665,-500.0,0.00015054,2]
[331087699,1720073444675,-500.0,0.00015054,2]
[331087700,1720073444684,-500.0,0.00015054,2]
[331087701,1720073444693,-500.0,0.00015054,2]
[331087702,1720073444702,-500.0,0.00015054,2]
[331087703,1720073444712,-500.0,0.00015054,2]
[331087704,1720073444721,-500.0,0.00015054,2]
[331087705,1720073444731,-513.61,0.00015054,2]
[331087706,1720073444740,-500.0,0.00015054,2]
[331087707,1720073444749,-534.62,0.00015054,2]
[331087708,1720073444759,-500.0,0.00015054,2]
[331087709,1720073444768,-500.0,0.00015054,2]
[331087710,1720073444778,-500.0,0.00015054,2]
[331087711,1720073444787,-500.0,0.00015054,2]
[331087712,1720073444796,-500.0,0.00015054,2]
[331087713,1720073444805,-500.0,0.00015054,2]
[331087714,1720073444815,-500.0,0.00015054,2]
[331087715,1720073444824,-7352.21,0.00015056,2]
[331087716,1720073444834,-4777.69,0.00015056,2]
[331087717,1720073444843,-500.0,0.00015056,2]
[331087718,1720073444853,-796.78,0.00015065,2]
[331087719,1720073444862,-531.62,0.00015065,2]
[331087720,1720073444871,-719.99,0.00015065,2]
[331087721,1720073444880,-4254.14,0.00015065,2]
[331087722,1720073444890,-2304.23,0.00015065,2]
[331087723,1720073444899,-877.0,0.00015235,2]
[331087724,1720073444908,-152.272,0.00015253,2]
[331087725,1720073444918,-1308.31,0.00015317,2]
[331087726,1720073444927,-7989.8,0.00015317,2]
[331087727,1720073444940,-972.03,0.00015317,2]
[331087728,1720073444950,-1814.72,0.00015317,2]
[331087729,1720073444959,-500.0,0.00015317,2]
[331087730,1720073444968,-500.0,0.00015317,2]
[331087731,1720073444979,-500.0,0.00015317,2]
[331087732,1720073444988,-1326.39,0.00015318,2]
[331087733,1720073444998,-1508.69,0.00015318,2]
[331087734,1720073445007,-773.3,0.00015318,2]
[331087735,1720073445018,-568.17,0.00015318,2]
[331087736,1720073445028,-2750.98,0.00015318,2]
[331087737,1720073445038,-500.0,0.00015318,2]
[331087738,1720073445047,-899.18,0.00015318,2]
[331087739,1720073445056,-607.16,0.00015318,2]
[331087740,1720073445065,-3012.99,0.00015318,2]
[331087741,1720073445074,-691.64,0.00015319,2]
[331087742,1720073445083,-500.0,0.00015319,2]
[331087743,1720073445092,-500.0,0.00015319,2]
[331087744,1720073445101,-500.0,0.00015319,2]
[331087745,1720073445110,-1051.33,0.00015319,2]
[331087746,1720073445119,-500.0,0.00015319,2]
[331087747,1720073445129,-613.62,0.00015319,2]
[331087748,1720073445138,-889.27,0.00015319,2]
[331087749,1720073445148,-500.0,0.00015319,2]
[331087750,1720073445157,-500.0,0.00015319,2]
[331087751,1720073445166,-527.11,0.00015319,2]
[331087752,1720073445175,-500.0,0.00015319,2]
[331087753,1720073445184,-500.0,0.00015319,2]
[331087754,1720073445193,-500.0,0.00015319,2]
[331087755,1720073445203,-500.0,0.00015319,2]
[331087756,1720073445212,-500.0,0.00015319,2]
[331087757,1720073445221,-500.0,0.00015319,2]
[331087758,1720073445231,-500.0,0.00015319,2]
[331087759,1720073445242,-500.0,0.00015319,2]
[331087760,1720073445251,-585.76,0.00015319,2]
[331087761,1720073445260,-500.0,0.00015319,2]
[331087762,1720073445270,-500.0,0.00015319,2]
[331087763,1720073445279,-500.0,0.00015319,2]
[331087764,1720073445288,-500.0,0.00015319,2]
[331087765,1720073445298,-500.0,0.00015319,2]
[331087766,1720073445307,-168.89198821,0.00015319,2]
[331087767,1720073445316,-500.0,0.00015319,2]
[331087768,1720073445326,-557.36,0.00015319,2]
[331087769,1720073445336,-500.0,0.00015319,2]
[331087770,1720073445345,-500.0,0.00015319,2]
[331087771,1720073445355,-612.53,0.00015319,2]
[331087772,1720073445364,-500.0,0.00015319,2]
[331087774,1720073445373,-775.38,0.00015319,2]
[331087776,1720073445383,-500.0,0.00015319,2]
[331087778,1720073445392,-500.0,0.00015319,2]
[331087780,1720073445403,-31.71005213,0.00015319,2]
[331087781,1720073445577,10000.0,0.00014,2]
[331087782,1720073445639,-468.28994787,0.00015319,2]
[331087783,1720073445649,-500.0,0.00015319,2]
[331087784,1720073445659,-500.0,0.00015319,2]
[331087785,1720073445669,-500.0,0.00015319,2]
[331087786,1720073445679,-500.0,0.00015319,2]
[331087787,1720073445688,-500.0,0.00015319,2]
[331087789,1720073445699,-500.0,0.00015319,2]
[331087790,1720073445708,-500.0,0.00015319,2]
[331087792,1720073445717,-3011.08,0.00015319,2]
[331087794,1720073445727,-500.0,0.00015319,2]
[331087796,1720073445736,-500.0,0.00015326,2]
[331087797,1720073445746,-1301.67119288,0.00015326,2]
[331087798,1720073445760,-264.0,0.00015326,2]
[331087821,1720073446612,-4575.39880712,0.00015326,2]
[331087822,1720073446622,-500.0,0.00015326,2]
[331087823,1720073446632,-1556.87,0.00015326,2]
[331087824,1720073446642,-635.75,0.00015326,2]
[331087825,1720073446651,-500.0,0.00015326,2]
[331087826,1720073446660,-500.0,0.00015328,2]
[331087827,1720073446669,-500.0,0.00015328,2]
[331087828,1720073446679,-500.0,0.00015328,2]
[331087829,1720073446688,-500.0,0.00015328,2]
[331087830,1720073446698,-500.0,0.00015328,2]
[331087831,1720073446707,-548.50267083,0.00015328,2]
[331087832,1720073446717,-500.0,0.00015328,2]
[331087833,1720073446726,-500.0,0.00015328,2]
[331087834,1720073446736,-500.0,0.00015328,2]
[331087835,1720073446745,-500.0,0.00015328,2]
[331087836,1720073446754,-500.0,0.00015328,2]
[331087837,1720073446764,-500.0,0.00015328,2]
[331087838,1720073446865,-500.0,0.00015328,2]
[331087839,1720073446893,-500.0,0.00015328,2]
[331087840,1720073446903,-513.61,0.00015328,2]
[331087841,1720073446912,-500.0,0.00015328,2]
[331087842,1720073446921,-534.62,0.00015328,2]
[331087843,1720073446932,-500.0,0.00015328,2]
[331087844,1720073446947,-500.0,0.00015328,2]
[331087845,1720073446956,-500.0,0.00015328,2]
[331087846,1720073446966,-500.0,0.00015328,2]
[331087847,1720073446975,-500.0,0.00015328,2]
[331087848,1720073446986,-500.0,0.00015328,2]
[331087849,1720073446996,-500.0,0.00015328,2]
[331087850,1720073447005,-7352.21,0.0001533,2]
[331087851,1720073447016,-4777.69,0.0001533,2]
[331087852,1720073447025,-500.0,0.0001533,2]
[331087853,1720073447036,-796.78,0.00015339,2]
[331087854,1720073447046,-531.62,0.00015339,2]
[331087855,1720073447054,-719.99,0.00015339,2]
[331087856,1720073447064,-4254.14,0.00015339,2]
[331087857,1720073447073,-2304.23,0.00015339,2]
[331087858,1720073447083,-500.0,0.0001547,7]
[331087859,1720073447092,-500.0,0.0001547,7]
[331087860,1720073447101,-500.0,0.0001547,7]
[331087861,1720073447111,-500.0,0.0001547,7]
[331087862,1720073447121,-500.0,0.0001547,7]
[331087863,1720073447130,-177.8,0.0001547,7]
[331087864,1720073447139,-1000.0,0.000155,2]
[331087865,1720073447148,-4458.28539669,0.00015504,2]
[331087866,1720073447157,-182.0,0.00015575,2]
[331087867,1720073447167,-1308.31,0.00015591,2]
[331087868,1720073447177,-7989.8,0.00015591,2]
[331087869,1720073447186,-972.03,0.00015591,2]
[331087870,1720073447195,-1814.72,0.00015591,2]
[331087871,1720073447204,-500.0,0.00015591,2]
[331087872,1720073447214,-500.0,0.00015591,2]
[331087873,1720073447223,-500.0,0.00015591,2]
[331087874,1720073447233,-1326.39,0.00015592,2]
[331087875,1720073447244,-1508.69,0.00015592,2]